[Event "26th Womens ECCC 2022"]
[Site "Mayrhofen"]
[Date "2022.10.03"]
[Round "1.26"]
[White "Houska, Jovanka"]
[Black "Johannsdottir, Johanna Bjorg"]
[Result "1-0"]
[ECO "E18"]
[WhiteElo "2354"]
[BlackElo "1964"]
[Annotator "TA"]
[PlyCount "141"]
[EventDate "2022.10.03"]
[EventType "team-tourn"]
[EventCountry "AUT"]
[SourceTitle "playchess.com"]
[Source "ChessBase"]
[SourceQuality "1"]
[TimeControl "40/5400+30:1800+30"]

{[%evp 16,141,27,20,14,0,2,0,6,-10,11,10,43,24,44,44,41,37,40,46,58,58,52,59,58,39,66,63,58,52,70,49,70,55,70,56,53,53,60,27,84,73,96,82,202,129,124,75,71,71,67,72,154,118,243,238,258,264,263,262,279,265,263,270,268,228,245,187,225,223,223,190,322,299,379,334,354,364,364,358,353,329,347,325,419,335,963,972,974,875,887,928,892,936,1256,779,1590,1444,6211,6009,5230,4508,29983,29984,29984,29985,29985,29986,29986,29987,29987,29988,29995,0,29985,0,29986,29987,29989,29990,29990,29991,29991,29991,29991,29992,29992,29993]} 1. d4 {[%emt 0:00:04]} Nf6 {[%emt 0:00:13]} 2. Nf3 {[%emt 0:00:24]} e6 {[%emt 0:00:09]} 3. c4 {[%emt 0:00:58]} b6 {[%emt 0:01:02]} 4. g3 {[%emt 0:00:16]} Bb7 {[%emt 0:00:05]} 5. Bg2 {[%emt 0:00:04]} Be7 {[%emt 0:00:55]} 6. O-O {[%emt 0:00:18]} O-O {[%emt 0:00:07]} 7. Nc3 {[%emt 0:00:43]} Ne4 {[%emt 0:02:20]} 8. Bd2 {[%emt 0:00:05]} f5 {[%emt 0:02:30]} 9. Rc1 {[%emt 0:09:42]} Bf6 {[%emt 0:04:45] E18: Queen's Indian: Old Main Line (4 g3 Bb7 5 Bg2 Be7 6 0-0 0-0 7 Nc3).} 10. b4 {[%emt 0:13:01]} Nc6 {[%emt 0:06:59][%csl LRb4,LRd4] [#]} 11. Be1 $146 {[%emt 0:05:27]} ({Predecessor:} 11. d5 Nxd2 12. Qxd2 Nxb4 13. Nb5 Na6 14. Nfd4 Bxd4 15. Qxd4 Qf6 16. dxe6 Bxg2 17. Kxg2 dxe6 18. Qxf6 gxf6 {½-½ (25) Nazarenus,O (2165)-Ortinau,H Landau 1996}) 11... Ne7 {[%emt 0:07:35] The position is equal.} 12. Qb3 {[%emt 0:03:18]} Rb8 {[%emt 0:04:48]} 13. e3 {[%emt 0:05:16]} c5 {[%emt 0:05:28]} 14. Nxe4 {[%emt 0:09:32]} Bxe4 {[%emt 0:05:15]} 15. dxc5 {[%emt 0:04:34]} bxc5 {[%emt 0:00:08]} 16. b5 {[%emt 0:00:03]} Qc7 {[%emt 0:04:41]} 17. Bc3 {[%emt 0:03:37]} Qb7 {[%emt 0:04:52]} 18. Ne1 {[%emt 0:00:52]} Bxg2 {[%emt 0:02:07]} 19. Nxg2 {[%emt 0:00:05]} Ng6 {[%emt 0:02:53]} 20. Rfd1 {[%emt 0:02:37]} Ne5 {[%emt 0:03:56]} 21. Bxe5 {[%emt 0:03:27]} Bxe5 {[%emt 0:00:06]} 22. Rd3 {[%emt 0:02:11]} Rf7 {[%emt 0:04:20]} 23. Rcd1 {[%emt 0:03:12]} Bf6 {[%emt 0:02:35]} 24. Qa3 {[%emt 0:06:22]} Qc7 {[%emt 0:03:09]} 25. Qc1 {[%emt 0:04:55]} g5 {[%emt 0:04:20]} 26. Qd2 {[%emt 0:01:07][%cal Rd3d7]} Rd8 {[%emt 0:00:29][%cal Od7d5]} 27. Rd6 {[%emt 0:01:20] Prevents d5.} Qb7 {[%emt 0:01:14]} (27... f4 $11) 28. Qe2 $16 {[%emt 0:02:53]} Qe4 {[%emt 0:07:10]} 29. a4 {[%emt 0:01:50]} Bc3 {[%emt 0:03:05]} (29... Re7 $16) 30. f3 {[%emt 0:01:47]} Qe5 {[%emt 0:00:28][%cal Oc3d4]} 31. R6d3 {[%emt 0:06:39] Against Bd4} (31. f4 $142 gxf4 32. Qh5) 31... Ba5 {[%emt 0:03:20]} 32. f4 $36 {[%emt 0:00:44][%mdl 2048] White has strong initiative.} gxf4 {[%emt 0:02:12]} 33. Nxf4 {[%emt 0:00:07]} Qe4 {[%emt 0:00:29] White leaves nothing to chance now.} (33... d6 $142) 34. Rd6 {[%emt 0:05:07]} Bc7 {[%emt 0:01:24] [#]} (34... Re7 $16) 35. Nxe6 $1 $18 {[%emt 0:00:33][%mdl 512]} Bxd6 {[%emt 0:00:27]} (35... dxe6 36. Rxd8+) 36. Nxd8 {[%emt 0:00:03]} Rf6 {[%emt 0:00:20][%cal Od6f4]} 37. Qd3 {[%emt 0:02:42] And now Qxe4 would win.} Qg4 {[%emt 0:02:39][%cal Od6g3]} 38. Qd5+ {[%emt 0:00:22]} Kf8 {[%emt 0:01:44][%cal Od6g3] [#]} 39. Rd2 $1 {[%emt 0:01:31] Black must now prevent Nb7.} (39. Nb7 Bxg3 40. hxg3 Qxg3+ 41. Kf1 f4 42. Qxc5+ Kg8 $11) 39... f4 {[%emt 0:04:23]} 40. exf4 {[%emt 0:01:17]} Bxf4 {[%emt 0:00:12]} 41. Rf2 {[%emt 0:02:26]} (41. Qxd7 Be3+) (41. Qxc5+ $6 Ke8 42. Qd4 Qg6) 41... Ke7 {[%emt 0:04:26]} 42. Qxc5+ {[%emt 0:06:59]} (42. Rxf4 Rxf4 43. Qe5+ Kxd8) (42. Nb7 $2 Be3 43. Nxc5 Bxf2+ $19) 42... Kxd8 {[%emt 0:01:56]} 43. Qd4 {[%emt 0:00:05][%mdl 64] Pin, Double Attack} ({Don't blunder} 43. Qxa7 $2 {[#]} Bxg3 $1 {[%mdl 512]} 44. Qa8+ Bb8+ 45. Qg2 Qd1+ 46. Qf1 Qd4 $19) 43... Qe6 {[%emt 0:01:42]} (43... Rf7 $142 44. Kh1 (44. Rxf4 Rxf4 45. Qxf4 Qd1+ 46. Qf1 Qxa4 $16) (44. Qxa7 Bxg3 45. hxg3 Qxg3+ 46. Kf1 Qd3+ 47. Kg1 Qg3+ 48. Rg2 Qe1+ 49. Kh2 Qh4+ 50. Kg1 Qe1+ 51. Kh2 Qh4+ 52. Kg1 Qe1+ $11) 44... Qg6) 44. Rxf4 {[%emt 0:00:16][%mdl 4096] Endgame KQR-KQR} Qe1+ {[%emt 0:00:29]} 45. Kg2 {[%emt 0:00:04]} Rxf4 {[%emt 0:05:48]} 46. Qxf4 {[%emt 0:00:50] KQ-KQ} ({Less strong is} 46. gxf4 Qe2+ 47. Kg3 Qe1+ 48. Kg2 Qe2+ 49. Kg3 Qe1+ 50. Kg4 Qe2+ 51. Kg3 $18) 46... Qe2+ {[%emt 0:00:09]} 47. Kh3 {[%emt 0:00:09]} Kc8 {[%emt 0:00:39]} 48. g4 {[%emt 0:00:54] Against Qh5+} Qe6 {[%emt 0:00:48]} 49. Qd4 {[%emt 0:06:00]} Qf7 {[%emt 0:03:07]} 50. Kg3 {[%emt 0:01:36]} h5 $2 {[%emt 0:03:15]} (50... Qe6 51. Qxa7 Qe5+ 52. Kf3 Qc3+ 53. Qe3 Qxc4) 51. Qc5+ {[%emt 0:00:37]} Kb8 {[%emt 0:00:15]} 52. gxh5 {[%emt 0:00:56]} Qg7+ {[%emt 0:00:34]} 53. Kf4 {[%emt 0:02:28]} Qf6+ {[%emt 0:00:09]} 54. Kg4 {[%emt 0:01:10]} Qe6+ {[%emt 0:00:36]} 55. Qf5 {[%emt 0:01:36] Threatening mate with Qxe6.} Qg8+ {[%emt 0:00:17]} 56. Kf3 {[%emt 0:00:18] h6 is the strong threat.} Qg7 {[%emt 0:00:41]} 57. h6 {[%emt 0:00:28]} Qc3+ {[%emt 0:00:13]} 58. Kg4 {[%emt 0:00:08] Intending Qf4+ and mate.} Kc8 {[%emt 0:01:01]} 59. Qf8+ {[%emt 0:00:20]} Kc7 {[%emt 0:00:08]} 60. h7 {[%emt 0:00:09]} Qa1 {[%emt 0:00:49]} 61. h8=Q {[%emt 0:01:16][%csl Gh8][%cal Rf8b8]} Qg1+ {[%emt 0:00:11]} 62. Kh3 {[%emt 0:00:29][%csl Gh8][%cal Rf8b8]} Qe3+ {[%emt 0:00:05]} 63. Kg2 {[%emt 0:00:12][%csl Gh8][%cal Rf8b8]} Qg5+ {[%emt 0:00:10]} 64. Kh3 {[%emt 0:00:23][%csl Gh8][%cal Rf8b8]} Qe3+ {[%emt 0:00:05]} 65. Kg4 {[%emt 0:01:02][%csl Gh8][%cal Rf8b8]} Qg1+ {[%emt 0:00:16]} 66. Kf5 {[%emt 0:00:43][%csl Gh8][%cal Rf8b8] White mates.} Qf1+ {[%emt 0:00:44]} 67. Kg6 {[%emt 0:00:22][%csl Gh8][%cal Rf8b8]} Qg2+ {[%emt 0:00:55]} 68. Kf7 {[%emt 0:00:10][%csl Gh8][%cal Rf8b8]} Qf3+ {[%emt 0:00:07]} 69. Kg8 {[%emt 0:00:07]} Qg4+ {[%emt 0:00:13]} 70. Qhg7 {[%emt 0:00:14]} Qxc4+ {[%emt 0:00:30]} 71. Qff7 {[%emt 0:00:05] Weighted Error Value: White=0.13 (very precise) /Black=0.29 (precise)} 1-0

[Event "26th Womens ECCC 2022"]
[Site "Mayrhofen"]
[Date "2022.10.03"]
[Round "1.27"]
[White "Thorsteinsdottir, Hallgerdur"]
[Black "Hunt, Harriet V"]
[Result "0-1"]
[ECO "B51"]
[WhiteElo "1959"]
[BlackElo "2359"]
[Annotator "TA"]
[PlyCount "176"]
[EventDate "2022.10.03"]
[EventType "team-tourn"]
[EventCountry "AUT"]
[SourceTitle "playchess.com"]
[Source "ChessBase"]
[SourceQuality "1"]
[TimeControl "40/5400+30:1800+30"]

{[%evp 9,176,15,26,26,15,10,17,12,12,9,24,0,29,15,35,45,66,46,67,35,47,35,40,37,59,58,58,33,60,54,56,57,61,24,48,43,113,106,99,68,76,72,87,85,155,160,160,-38,-38,-38,-38,-42,-14,-26,-14,-14,-14,-58,0,-14,0,0,0,-14,0,0,0,0,0,0,81,0,0,0,0,0,0,0,0,0,0,0,40,4,143,0,0,0,0,-621,-421,-638,-103,-306,-271,-282,-78,-78,-78,-444,-440,-393,-393,-775,-373,-654,-635,-578,-351,-272,0,-551,-295,-274,-248,-232,0,-217,0,0,0,0,0,0,0,-640,-640,-640,-622,-600,-597,-317,-292,-292,-292,-856,-292,-815,-814,-1129,-996,-924,-924,-1308,-692,-5329,0,-1135,0,-604,-592,-5202,-566,-388,0,-29967,-29971,-29971,-29972,-29971,-29972,-29969,-29973,-29974,-29975,-29975,-29976,-29974,-29969]} 1. e4 {[%emt 0:00:04]} c5 {[%emt 0:00:06]} 2. Nf3 {[%emt 0:00:13]} d6 {[%emt 0:00:09]} 3. Bb5+ {[%emt 0:00:20]} Nd7 {[%emt 0:00:16]} 4. a4 {[%emt 0:00:31]} a6 {[%emt 0:03:44]} 5. Be2 {[%emt 0:01:57]} Ngf6 {[%emt 0:01:32]} 6. Nc3 {[%emt 0:00:42] B51: Sicilian: Moscow Variation (3 Bb5+) without 3...Bd7.} b6 {[%emt 0:03:25]} 7. d4 {[%emt 0:01:42]} cxd4 {[%emt 0:00:14]} 8. Qxd4 {[%emt 0:02:05] The position is equal.} Bb7 {[%emt 0:03:27]} 9. O-O {[%emt 0:04:11]} e6 {[%emt 0:04:22]} 10. Bg5 {[%emt 0:07:10]} Qc7 {[%emt 0:14:53] [#]} 11. Nd2 $146 {[%emt 0:12:00]} ({Predecessor:} 11. Rfd1 Be7 12. a5 b5 13. Bxf6 gxf6 14. Qe3 h5 15. Nd4 b4 16. Nb1 Ne5 17. Nd2 {0-1 (39) Heimrath,R (2146)-Quaschner,T (2086) Grossenseebach 2012}) 11... Qc5 {[%emt 0:27:44]} 12. Qxc5 {[%emt 0:02:29]} bxc5 {[%emt 0:00:30]} 13. Rfe1 {[%emt 0:16:38]} Be7 {[%emt 0:05:16]} 14. a5 {[%emt 0:01:24]} (14. Bf4 $5 {[%cal Rd2c4]}) 14... h6 {[%emt 0:03:15]} 15. Bh4 {[%emt 0:03:57]} Ne5 {[%emt 0:04:07][%cal Bd7e5,Be5c6,Bc6d4][%mdl 32]} 16. Bg3 {[%emt 0:04:59]} Nfd7 {[%emt 0:04:15]} 17. f4 {[%emt 0:03:53]} Nc6 {[%emt 0:00:27]} 18. Nc4 {[%emt 0:09:19]} Nd4 {[%emt 0:01:02]} 19. Bd3 {[%emt 0:00:44]} O-O {[%emt 0:05:51]} 20. f5 {[%emt 0:01:16]} e5 {[%emt 0:00:11]} 21. Ne3 {[%emt 0:02:29]} Rab8 {[%emt 0:03:33]} 22. Ncd5 {[%emt 0:03:01]} Bxd5 {[%emt 0:01:12]} (22... Bg5 $14) 23. Nxd5 $16 {[%emt 0:00:13]} Bd8 {[%emt 0:01:01]} 24. b3 {[%emt 0:08:14]} (24. Bxa6 $6 Nxc2 25. Ra2 Ra8 $11) 24... c4 {[%emt 0:02:49]} 25. bxc4 {[%emt 0:01:11]} (25. Bxc4 Nxc2 26. Rad1 Na3 $11) 25... Nc5 {[%emt 0:00:52]} 26. Bf2 {[%emt 0:03:19]} Nxd3 {[%emt 0:02:39]} (26... Re8 $142) 27. cxd3 {[%emt 0:00:24]} Nc2 {[%emt 0:01:40]} 28. Nb6 $2 {[%emt 0:01:11]} (28. Reb1 $16 Bxa5 29. Ba7 (29. Ne7+ Kh7 $16) 29... Rxb1+ 30. Rxb1) 28... Nxe1 {[%emt 0:01:44]} 29. Rxe1 {[%emt 0:00:06]} Rb7 {[%emt 0:00:16]} 30. g4 {[%emt 0:03:16]} Bg5 {[%emt 0:00:29]} 31. Rd1 {[%emt 0:00:12]} Rfb8 {[%emt 0:00:58]} 32. Kg2 {[%emt 0:00:40]} Bd8 {[%emt 0:00:41][%cal Rd8b6]} 33. Rb1 {[%emt 0:01:26]} Bg5 {[%emt 0:00:36]} (33... Ra8 $5 {[%cal Rd8b6]}) 34. Rd1 {[%emt 0:00:09]} g6 {[%emt 0:01:15]} 35. h4 {[%emt 0:01:55]} Bd8 {[%emt 0:00:12]} 36. Rb1 {[%emt 0:00:08]} Kh7 {[%emt 0:00:57]} 37. Kf3 {[%emt 0:00:36]} Kg7 {[%emt 0:00:54]} 38. Ke2 {[%emt 0:01:32]} h5 {[%emt 0:01:09]} 39. g5 {[%emt 0:00:40]} Bxb6 {[%emt 0:01:36]} (39... f6 $11) 40. f6+ {[%emt 0:01:55]} ({Inferior is} 40. Rxb6 Rxb6 41. Bxb6 Rc8 $17) (40. axb6 $16 f6 41. gxf6+ Kxf6 42. fxg6) 40... Kf8 $11 {[%emt 0:00:05]} 41. axb6 {[%emt 0:12:21][%mdl 4096] Endgame KRR-KRB} Ke8 $1 {[%emt 0:04:19]} 42. Ra1 {[%emt 0:04:06]} Ra8 $1 {[%emt 0:11:07]} 43. Ra5 {[%emt 0:02:02]} Kd7 {[%emt 0:00:35]} 44. c5 {[%emt 0:01:50]} dxc5 {[%emt 0:01:56]} 45. Bxc5 {[%emt 0:07:02]} Rc8 {[%emt 0:06:08]} 46. Be3 {[%emt 0:01:23]} Rc2+ {[%emt 0:01:23]} (46... Kd6 $11) 47. Kf3 {[%emt 0:00:18]} (47. Kd1 $1 $16 {[%cal Rd1c2]} Rh2 48. Rd5+ Kc8 49. Rxe5) 47... Rc3 {[%emt 0:02:49]} 48. Rxa6 {[%emt 0:02:51]} Rxd3 {[%emt 0:00:36]} 49. Ra7 $2 {[%emt 0:02:05][%mdl 8192]} (49. Kf2 $11) 49... Kc6 {[%emt 0:00:17] White must now prevent ...Rxa7.} 50. Ke2 {[%emt 0:00:31]} (50. Ra6 $142 Rbd7 51. Ke2) 50... Rb3 $2 {[%emt 0:00:57]} (50... Rxa7 $1 $19 {is more deadly.} 51. bxa7 Ra3) 51. Ra5 $2 {[%emt 0:00:31]} (51. Ra2 $17) 51... Rb5 {[%emt 0:00:46]} 52. Ra8 {[%emt 0:00:18]} Rb2+ $2 {[%emt 0:01:24]} (52... Rd7 $1 $19 {and Black stays clearly on top. Strongly threatening ...Rb3.} 53. Ra3 Rb1) 53. Kf3 $17 {[%emt 0:00:09]} Rb3 {[%emt 0:00:51]} 54. Ke2 $2 {[%emt 0:00:20][%mdl 8192]} (54. Rc8+ $17 {nothing else works.} Kd7 55. Rf8 R7xb6 56. Rxf7+ Kd6 57. Ra7) 54... Rd7 $19 {[%emt 0:02:58]} 55. Rc8+ {[%emt 0:01:26]} Kb7 {[%emt 0:00:06]} 56. Rc4 $2 {[%emt 0:01:05]} (56. Rf8) 56... Rb5 (56... Rb2+ $142 57. Ke1 Rd3) 57. Ra4 $2 (57. Rc2 Rb4 58. Rc5 Rxe4 59. Kf3 Rxh4 60. Rxe5) 57... Rb2+ {[%emt 0:02:43]} 58. Ke1 {[%emt 0:01:44]} Kc6 {[%emt 0:00:27] Inhibits Bc5.} 59. Rc4+ {[%emt 0:00:22]} Kb7 $2 {[%emt 0:00:18]} (59... Kb5 $1 {[%cal Rb5c4]} 60. Rc8 Ka6 61. Ra8+ Kb7) 60. Ra4 {[%emt 0:00:35]} Rh2 {[%emt 0:00:48]} 61. Bf2 {[%emt 0:00:23]} (61. Ra7+ Kc6 62. Bf2 (62. Rxd7 Kxd7 63. Bf2 Rxf2 $19) 62... Rxa7 63. bxa7 Kb7 $19) 61... Rh1+ $1 {[%emt 0:00:12]} 62. Ke2 {[%emt 0:00:10]} Rhd1 $2 {[%emt 0:00:30]} (62... Rb1 $1 $19 {[%cal Rb1b2] Threatens to win with ...Rb2+.} 63. Ra7+ Kc6) 63. Be3 $2 {[%emt 0:00:37]} (63. Ra7+ $11 {and White has nothing to worry.} Kb8 64. Bg3 R1d2+ 65. Ke1 Rd1+ 66. Ke2 R7d2+ 67. Kf3 Rd3+ 68. Kf2) 63... R1d6 $2 {[%emt 0:00:48]} ({Black should try} 63... Rb1 $1 $19 {[%cal Rb1b2] And now ...Rb2+ would win.} 64. Ra7+ Kc6) 64. Ra5 $1 $11 {[%emt 0:00:25]} Re6 {[%emt 0:00:06]} 65. Bf2 {[%emt 0:00:38]} Kc6 {[%emt 0:00:17]} 66. Be3 {[%emt 0:01:01]} Re8 {[%emt 0:00:44]} 67. Ra7 $2 {[%emt 0:00:51][%mdl 8192]} (67. Rc5+ $11 Kd6 68. Rd5+ Ke6 69. Rc5) 67... Rxa7 $19 {[%emt 0:00:16]} 68. bxa7 {[%emt 0:00:05] KR-KB} Rd8 {[%emt 0:00:40]} 69. Bf2 {[%emt 0:00:11]} Kb5 {[%emt 0:00:26]} 70. Be3 {[%emt 0:00:12]} Ka6 {[%emt 0:00:28]} 71. Bf2 {[%emt 0:00:11]} Kb7 {[%emt 0:00:05]} 72. Be3 $2 {[%emt 0:00:08]} (72. Bg3) 72... Rd6 {[%emt 0:00:12]} 73. Bf2 $2 {[%emt 0:00:22]} (73. Bg1) 73... Ra6 {[%emt 0:00:05] ...Ra3 is the strong threat.} 74. Be3 {[%emt 0:00:20]} Ra3 {[%emt 0:00:55]} 75. Bc5 {[%emt 0:01:12]} Rh3 {[%emt 0:01:09]} 76. Bf2 {[%emt 0:00:07]} Rh2 {[%emt 0:00:05][%cal Oh2f2] ( -> ...Rxf2+!)} 77. Kf3 {[%emt 0:00:22] [#]} Rh3+ {[%emt 0:00:32]} (77... Rxf2+ $142 $1 {[%mdl 512]} 78. Kxf2 Kxa7) 78. Ke2 $1 {[%emt 0:00:12]} Ra3 {[%emt 0:00:02] aiming for ...Rh3.} 79. Bc5 {[%emt 0:00:22]} Ra2+ {[%emt 0:00:22]} 80. Kf3 {[%emt 0:00:13]} Kc6 {[%emt 0:00:12]} (80... Ra5 $142 81. Bg1 Rxa7) 81. Be3 {[%emt 0:00:51]} Kb7 $2 {[%emt 0:00:59]} ({Black should play} 81... Kc7 $19 82. Bc5 Kb7) 82. Bf2 $2 {[%emt 0:00:26][%mdl 8192] [#]} (82. Bc5 $11) 82... Rxf2+ $1 {[%emt 0:00:53][%mdl 512] Black mates.} 83. Kxf2 {[%emt 0:00:06]} Kxa7 {[%emt 0:00:02] KP-KP} 84. Ke2 {[%emt 0:03:17]} Kb6 {[%emt 0:00:28]} 85. Kd2 {[%emt 0:00:35]} Kb5 $1 {[%emt 0:00:35]} 86. Kd3 {[%emt 0:00:25] [#]} Kb4 $1 {[%emt 0:00:10]} 87. Kd2 {[%emt 0:00:28]} Kc4 {[%emt 0:00:17]} 88. Ke3 {[%emt 0:00:26] [#]} Kc3 $1 {[%emt 0:00:06] Never resign too early!  Weighted Error Value: White=0.58/Black=0.53} 0-1

[Event "26th Womens ECCC 2022"]
[Site "Mayrhofen"]
[Date "2022.10.03"]
[Round "1.28"]
[White "Toma, Katarzyna"]
[Black "Thorsteinsdottir, Gudlaug"]
[Result "1-0"]
[ECO "C44"]
[WhiteElo "2249"]
[BlackElo "2014"]
[Annotator "NA RC"]
[PlyCount "91"]
[EventDate "2022.10.03"]
[EventType "team-tourn"]
[EventCountry "AUT"]
[SourceTitle "playchess.com"]
[Source "ChessBase"]
[SourceQuality "1"]
[TimeControl "40/5400+30:1800+30"]

1. e4 {[%emt 0:00:03]} e5 {[%emt 0:00:04]} 2. Nf3 {[%emt 0:00:05]} Nc6 {[%emt 0:00:04]} 3. d4 {[%emt 0:00:09]} exd4 {[%emt 0:00:05]} 4. Nxd4 {[%emt 0:00:06]} Nf6 {[%emt 0:00:05]} 5. Nc3 {[%emt 0:00:28]} Bb4 {[%emt 0:00:31]} 6. Nxc6 {[%emt 0:00:17]} bxc6 {[%emt 0:00:08]} 7. Bd3 {[%emt 0:00:06]} d5 {[%emt 0:00:20]} 8. exd5 {[%emt 0:00:08]} cxd5 {[%emt 0:00:06]} 9. O-O {[%emt 0:00:26]} O-O {[%emt 0:01:08]} 10. Qf3 {[%emt 0:00:46]} c6 {[%emt 0:00:48]} 11. Bg5 {[%emt 0:02:06]} Be7 {[%emt 0:00:17]} 12. h3 {[%emt 0:00:56]} Be6 {[%emt 0:04:22]} 13. Rad1 {[%emt 0:07:44]} Re8 {[%emt 0:07:11]} 14. b3 {[%emt 0:10:10]} h6 {[%emt 0:05:10]} 15. Bf4 {[%emt 0:00:54]} Bd6 {[%emt 0:01:41]} 16. Ne2 {[%emt 0:03:07]} Bxf4 {[%emt 0:08:00]} 17. Nxf4 {[%emt 0:00:19]} Nd7 {[%emt 0:07:34]} 18. Rfe1 {[%emt 0:06:36]} Qf6 {[%emt 0:09:17]} 19. Qg3 {[%emt 0:03:12]} Nc5 {[%emt 0:05:05]} 20. Qe3 {[%emt 0:28:00]} Nxd3 {[%emt 0:20:48]} 21. Nxd3 {[%emt 0:00:07]} d4 {[%emt 0:01:40]} 22. Qe5 {[%emt 0:01:12]} Qxe5 {[%emt 0:01:06]} 23. Rxe5 {[%emt 0:00:12]} Bd5 {[%emt 0:09:47]} 24. Rxe8+ {[%emt 0:06:33]} Rxe8 {[%emt 0:00:05]} 25. Rd2 {[%emt 0:00:33]} Rd8 {[%emt 0:04:39]} 26. Nc5 {[%emt 0:01:37]} Re8 {[%emt 0:03:02]} 27. f3 {[%emt 0:03:01]} Re3 {[%emt 0:01:41]} 28. Kf2 {[%emt 0:00:59]} Rc3 {[%emt 0:00:16]} 29. Na4 {[%emt 0:00:33]} Re3 {[%emt 0:01:15]} 30. Rxd4 {[%emt 0:00:10]} Re8 {[%emt 0:00:57]} 31. Nc5 {[%emt 0:00:15]} f6 {[%emt 0:03:40]} 32. c4 {[%emt 0:01:04]} Bf7 {[%emt 0:00:09]} 33. Rd7 {[%emt 0:01:08]} Re5 {[%emt 0:00:32]} 34. Nb7 {[%emt 0:02:17]} Bg6 {[%emt 0:00:58]} 35. Rd6 {[%emt 0:02:37]} Bb1 {[%emt 0:00:53]} 36. a3 {[%emt 0:01:45]} Ba2 {[%emt 0:01:35]} 37. Rd3 {[%emt 0:00:22]} a5 {[%emt 0:00:55]} 38. Re3 {[%emt 0:08:28]} a4 {[%emt 0:01:10]} 39. Rxe5 {[%emt 0:00:48]} fxe5 {[%emt 0:00:10]} 40. bxa4 {[%emt 0:00:14]} Bxc4 {[%emt 0:00:11]} 41. Nc5 {[%emt 0:30:26]} Kf7 {[%emt 0:03:09]} 42. a5 {[%emt 0:00:00]} Ke7 {[%emt 0:00:50]} 43. a6 {[%emt 0:00:00]} Bxa6 {[%emt 0:00:09]} 44. Nxa6 {[%emt 0:00:00]} Kd6 {[%emt 0:00:04]} 45. Nb4 {[%emt 0:00:00]} c5 {[%emt 0:00:09]} 46. Nc2 {[%emt 0:00:00]} 1-0

[Event "26th Womens ECCC 2022"]
[Site "Mayrhofen"]
[Date "2022.10.03"]
[Round "1.29"]
[White "Buksa, Nataliya"]
[Black "Katkov, Michelle"]
[Result "1/2-1/2"]
[ECO "C77"]
[WhiteElo "2413"]
[BlackElo "2219"]
[Annotator "TA"]
[PlyCount "85"]
[EventDate "2022.10.03"]
[EventType "team-tourn"]
[EventCountry "AUT"]
[SourceTitle "playchess.com"]
[Source "ChessBase"]
[SourceQuality "1"]
[TimeControl "40/5400+30:1800+30"]

{[%evp 11,85,7,16,16,46,55,45,32,62,48,45,37,41,41,76,86,84,84,81,78,78,78,73,49,59,46,62,41,56,0,0,0,0,0,14,21,18,18,18,21,21,24,25,24,16,0,0,0,0,0,0,0,0,0,0,0,0,0,0,0,0,0,0,0,0,0,0,0,0,0,0,0,0,0,0,0]} 1. e4 {[%emt 0:00:02]} e5 {[%emt 0:00:10]} 2. Nf3 {[%emt 0:00:04]} Nc6 {[%emt 0:00:06]} 3. Bb5 {[%emt 0:00:04]} a6 {[%emt 0:00:30]} 4. Ba4 {[%emt 0:00:04]} Nf6 {[%emt 0:00:04]} 5. Nc3 {[%emt 0:00:03]} b5 {[%emt 0:03:19]} 6. Bb3 {[%emt 0:00:32]} Bc5 {[%emt 0:01:18]} 7. Nd5 {[%emt 0:00:09] C77: Ruy Lopez: 3...a6 4 Ba4 Nf6, unusual lines.} d6 {[%emt 0:11:31]} 8. c3 {[%emt 0:00:18]} h6 {[%emt 0:35:18]} 9. d4 {[%emt 0:19:10] White is slightly better.} Ba7 {[%emt 0:03:47]} 10. a4 {[%emt 0:01:16] [#]} b4 $146 {[%emt 0:26:54]} ({Predecessor:} 10... O-O 11. O-O Bb7 12. Nxf6+ Qxf6 13. Bd5 Nd8 14. Bxb7 Nxb7 15. axb5 axb5 16. Be3 exd4 17. Rxa7 {1-0 (17) Aveskulov,V (2531)-Pacher,M (2394) Budapest 2022}) 11. O-O {[%emt 0:28:34]} bxc3 {[%emt 0:01:20][%cal Ra7d4]} 12. bxc3 {[%emt 0:02:18]} (12. Nxf6+ {feels hotter.} Qxf6 13. Bd5 Bd7 14. bxc3 O-O 15. Be3) 12... Rb8 {[%emt 0:02:00]} 13. dxe5 {[%emt 0:12:52] White is more active.} Nxe5 {[%emt 0:00:45]} 14. Nxe5 {[%emt 0:00:35]} dxe5 {[%emt 0:00:08]} 15. Nxf6+ {[%emt 0:04:03]} Qxf6 {[%emt 0:00:13]} 16. Ba3 {[%emt 0:00:03]} c5 {[%emt 0:01:22]} 17. Bc4 {[%emt 0:00:26]} O-O {[%emt 0:00:55]} 18. a5 {[%emt 0:01:26]} Qg6 {[%emt 0:03:07]} 19. Qe2 {[%emt 0:00:29]} Be6 {[%emt 0:02:42]} 20. Rab1 {[%emt 0:06:02]} (20. Bc1 $14) 20... Bxc4 $11 {[%emt 0:01:15]} 21. Qxc4 {[%emt 0:00:03]} Qc6 {[%emt 0:00:28]} 22. Rfd1 {[%emt 0:00:45]} Rb5 {[%emt 0:00:27]} 23. Rxb5 {[%emt 0:01:23]} axb5 {[%emt 0:00:12]} 24. Qd5 {[%emt 0:00:02]} Qc7 {[%emt 0:00:26]} 25. a6 {[%emt 0:00:30]} b4 {[%emt 0:02:06]} 26. cxb4 {[%emt 0:03:45]} cxb4 {[%emt 0:00:08]} 27. Bxb4 {[%emt 0:00:18]} Rc8 $1 {[%emt 0:00:40]} 28. Be1 {[%emt 0:00:45] The position is equal.} Bd4 {[%emt 0:00:33]} 29. Qb7 {[%emt 0:15:06]} Qc2 {[%emt 0:01:20]} 30. Rd2 {[%emt 0:00:25]} Qc1 {[%emt 0:00:22][%cal Rc1e1] [#]} 31. Kf1 {[%emt 0:00:19] Hoping for a7.} Qc4+ {[%emt 0:00:53]} 32. Kg1 {[%emt 0:01:03] aiming for a7.} Qc1 {[%emt 0:00:12][%cal Rc1e1]} 33. Re2 {[%emt 0:00:42] a7 is the strong threat.} Rc7 {[%emt 0:00:31]} 34. Qb5 {[%emt 0:00:22]} Ra7 {[%emt 0:01:17]} 35. Qa4 {[%emt 0:00:39]} Kh7 {[%emt 0:00:33]} 36. g3 {[%emt 0:00:42]} Qb1 {[%emt 0:00:42]} 37. Qa3 {[%emt 0:01:09]} Qd1 {[%emt 0:00:29]} 38. Kf1 {[%emt 0:00:09]} Qb1 {[%emt 0:00:23]} 39. Kg2 {[%emt 0:01:58]} Qd1 {[%emt 0:00:34]} 40. Qf3 {[%emt 0:01:08]} Rxa6 {[%emt 0:00:23] [#] Strongly threatening ...Rf6.} 41. Qf5+ {[%emt 0:30:34]} Rg6 {[%emt 0:01:21]} 42. Kf1 {[%emt 0:00:00]} Qb3 {[%emt 0:02:04]} 43. h4 {[%emt 0:00:00] Weighted Error Value: White=0.05 (flawless) /Black=0.04 (flawless)} 1/2-1/2